bitfinex-derivatives/quotes_ETHF0:USTF0_20230105
["timestamp","ask_amount","ask_price","bid_price","bid_amount"]
[1672913727375,3.2078,1250.4,1250.3,1.19671372]
[1672913728526,3.2078,1250.4,1250.3,2.99192187]
[1672913729684,3.2078,1250.4,1250.3,1.19671372]
[1672913730631,3.2078,1250.4,1250.3,2.99192187]
[1672913730845,3.2078,1250.4,1250.3,1.19671372]
[1672913731156,3.2078,1250.4,1250.3,2.99192187]
[1672913732521,6.2078,1250.5,1250.3,2.99192187]
[1672913733048,6.2078,1250.5,1250.3,1.19671372]
[1672913733464,6.2078,1250.5,1250.3,2.99192187]
[1672913739886,3.0,1250.5,1250.4,1.19671372]
[1672913740102,6.2078,1250.5,1250.4,1.19671372]
[1672913740312,6.2078,1250.5,1250.3,2.99192187]
[1672913740624,6.2078,1250.5,1250.4,1.19671372]
[1672913745983,6.2078,1250.5,1250.3,2.99192187]
[1672913746397,6.2078,1250.5,1250.4,1.19671372]
[1672913747459,3.0,1250.5,1250.4,1.19671372]
[1672913747889,6.2078,1250.5,1250.4,1.19671372]
[1672913748087,6.2078,1250.5,1250.3,2.99192187]
[1672913748619,6.2078,1250.5,1250.4,1.19671372]
[1672913749144,3.0,1250.5,1250.4,1.19671372]
[1672913749354,6.2078,1250.5,1250.4,1.19671372]
[1672913750827,6.2078,1250.5,1250.3,2.99192187]
[1672913752190,6.2078,1250.5,1250.4,1.19671372]
[1672913752716,6.2078,1250.5,1250.4,1.19163153]
[1672913753769,6.20363717,1250.5,1250.4,1.19163153]
[1672913753976,2.99583717,1250.5,1250.4,1.19163153]
[1672913754186,6.20363717,1250.5,1250.4,1.19163153]
[1672913756499,2.99583717,1250.5,1250.4,1.19163153]
[1672913757132,6.20363717,1250.5,1250.4,1.19163153]
[1672913758922,6.20363717,1250.5,1250.4,2.98683968]
[1672913762600,6.20363717,1250.5,1250.4,1.19163153]
[1672913763550,2.99583717,1250.5,1250.4,1.19163153]
[1672913763863,6.20363717,1250.5,1250.4,1.19163153]
[1672913764914,6.20363717,1250.5,1250.4,2.98683968]
[1672913766917,6.20363717,1250.5,1250.4,1.79520815]
[1672913771537,2.99583717,1250.5,1250.4,1.79520815]
[1672913772275,67.1658,1250.8,1250.4,2.38875191]
[1672913772484,3.0,1250.7,1250.6,3.0]
[1672913772903,3.0,1250.7,1250.5,2.79377784]
[1672913773114,3.0,1250.7,1250.5,5.18252975]
[1672913773534,3.0,1250.7,1250.5,2.79377784]
[1672913773744,3.0,1250.7,1250.5,1.79377784]
[1672913774375,3.0,1250.7,1250.5,2.79377784]
[1672913775747,3.0,1250.7,1250.4,7.18252975]
[1672913775956,3.0,1250.7,1250.5,1.0]
[1672913776170,3.0,1250.7,1250.5,2.79377784]
[1672913778060,53.2078,1250.8,1250.5,2.79377784]
[1672913778268,53.2078,1250.8,1250.5,5.18252975]
[1672913778479,3.0,1250.7,1250.5,5.18252975]
[1672913778691,3.0,1250.7,1250.5,10.18252975]
[1672913779114,3.0,1250.7,1250.6,1.79377784]
[1672913779326,53.2078,1250.8,1250.6,9.79477784]
[1672913779638,3.0,1250.7,1250.6,11.001]
[1672913780895,53.2078,1250.8,1250.6,11.001]
[1672913781313,53.2078,1250.8,1250.6,21.49892718]
[1672913781633,53.2078,1250.8,1250.7,3.0]
[1672913783416,50.0,1250.8,1250.7,3.0]
[1672913784361,50.0,1250.8,1250.7,6.2078]
[1672913784680,50.0,1250.8,1250.7,12.79477784]
[1672913785726,50.0,1250.8,1250.7,11.001]
[1672913786676,50.0,1250.8,1250.7,16.001]
[1672913789302,50.0,1250.8,1250.7,21.00257784]
[1672913789508,50.0,1250.8,1250.7,19.2088]
[1672913789934,50.0,1250.8,1250.7,21.00257784]
[1672913791821,49.68513462,1250.8,1250.7,23.38275196]
[1672913792028,45.27793462,1250.8,1250.7,23.01443043]
[1672913792244,17.66648555,1250.8,1250.7,26.6116184]
[1672913792454,2.66708555,1250.8,1250.7,25.51462264]
[1672913792663,5.0452,1251.0,1250.7,25.51462264]
[1672913792664,5.0452,1251.0,1250.8,0.98371919]
[1672913792883,5.0452,1251.0,1250.9,22.18174957]
[1672913792884,3.6972,1251.0,1250.9,22.18174957]
[1672913793093,3.21676588,1251.6,1251.1,8.001]
[1672913793301,3.2078,1251.4,1251.2,1.0]
[1672913793511,3.2078,1251.4,1251.0,1.78375806]
[1672913793825,3.2078,1251.2,1251.0,10.60189284]
[1672913794033,3.2078,1251.2,1250.9,5.0]
[1672913794238,3.2078,1251.4,1251.0,3.2078]
[1672913794455,3.0,1251.3,1251.1,3.0]
[1672913794665,3.0,1251.3,1251.0,11.001]
[1672913795090,3.0,1251.3,1251.1,3.0]
[1672913795924,3.0,1251.3,1251.0,14.2088]
[1672913797181,3.0,1251.3,1250.9,14.78475806]
[1672913797397,3.0,1251.3,1250.9,13.001]
[1672913798450,3.0,1251.3,1251.0,3.0]
[1672913798765,3.0,1251.3,1251.0,6.2078]
[1672913801912,3.0,1251.3,1251.0,3.2078]
[1672913802549,3.2078,1251.2,1251.0,3.2078]
[1672913802759,3.0,1251.3,1251.0,3.2078]
[1672913802760,3.0,1251.1,1251.0,3.2078]
[1672913804872,3.0,1251.1,1250.9,5.0]
[1672913806660,3.0,1251.1,1250.9,6.78375806]
[1672913806869,3.0,1251.1,1250.9,9.78375806]
[1672913808338,3.0,1251.1,1250.9,9.28375806]
[1672913808749,3.0,1251.3,1251.0,3.20777009]
[1672913809382,3.0,1251.3,1251.1,3.0]
[1672913812226,3.0,1251.3,1251.1,6.2078]
[1672913814435,3.0,1251.3,1251.1,3.0]
[1672913814636,3.0,1251.3,1251.1,6.2078]
[1672913815483,3.0,1251.3,1251.1,7.99155806]
[1672913815694,3.0,1251.3,1251.1,6.2078]
[1672913815908,3.0,1251.3,1251.1,3.0]
[1672913816216,3.0,1251.3,1251.0,11.28475806]
[1672913816848,3.0,1251.3,1251.0,9.78475806]
[1672913817059,3.2078,1251.2,1250.9,12.49155806]
[1672913817274,3.0,1251.1,1250.9,14.86990214]
[1672913817485,3.0,1251.1,1250.9,12.36990214]
[1672913818109,3.0,1251.1,1250.9,20.37090214]
[1672913819168,3.0,1251.1,1251.0,4.78375806]
[1672913819795,3.2078,1251.2,1251.0,4.78375806]
[1672913820006,3.2078,1251.2,1250.9,18.58714408]
[1672913820007,3.0,1251.1,1250.9,12.36990214]
[1672913821166,3.0,1251.1,1251.0,1.78375806]
[1672913821375,3.0,1251.1,1251.0,4.78375806]
[1672913822326,3.0,1251.1,1251.0,1.78375806]
[1672913822953,3.0,1251.3,1251.0,7.16210214]
[1672913823159,3.0,1251.3,1251.1,1.78375806]
[1672913828634,3.0,1251.3,1251.0,4.16210214]
[1672913829267,3.0,1251.3,1251.1,1.78375806]
[1672913829583,3.2078,1251.2,1251.1,1.78375806]
[1672913830215,3.0,1251.3,1251.1,1.78375806]
[1672913831575,3.0,1251.3,1251.1,4.16210214]
[1672913832204,6.2078,1251.3,1251.1,4.16210214]
[1672913833154,6.2078,1251.3,1251.2,1.78375806]
[1672913833576,3.0,1251.3,1251.2,4.78375806]
[1672913833783,3.0,1251.3,1251.2,4.16210214]
[1672913834000,3.0,1251.3,1251.2,2.37834408]
[1672913834208,3.0,1251.3,1251.2,4.17001964]
[1672913835154,3.0,1251.3,1251.2,1.79167556]
[1672913835997,3.0,1251.3,1251.2,4.17001964]
[1672913836625,3.0,1251.3,1251.2,1.79167556]
[1672913837043,3.0,1251.3,1251.2,4.17001964]
[1672913837256,3.0,1251.3,1251.2,1.79167556]
[1672913839365,3.0,1251.3,1251.2,4.17001964]
[1672913839787,3.0,1251.3,1251.2,2.37834408]
[1672913840412,3.0,1251.3,1251.2,4.169257]
[1672913840629,3.0,1251.3,1251.2,1.79091292]
[1672913841987,6.2078,1251.3,1251.2,1.79091292]
[1672913842612,6.2078,1251.3,1251.1,4.169257]
[1672913843357,6.2078,1251.3,1251.2,1.79091292]
[1672913843981,6.2078,1251.3,1251.1,2.37834408]
[1672913850618,6.2078,1251.3,1251.0,8.55909365]
[1672913850818,6.2078,1251.3,1251.1,2.37834408]
[1672913851356,6.2078,1251.3,1251.0,8.55909365]
[1672913851670,6.2078,1251.3,1251.1,2.37834408]
[1672913851873,6.2078,1251.3,1251.0,8.55909365]
[1672913852401,6.2078,1251.3,1251.1,2.37834408]
[1672913855662,6.2078,1251.3,1251.0,8.55909365]
[1672913856710,6.2078,1251.3,1251.1,2.37834408]
[1672913858495,6.2078,1251.3,1251.0,2.37834408]
[1672913858706,6.2078,1251.3,1251.0,3.79508268]
[1672913859124,6.2078,1251.3,1251.0,6.76803225]
[1672913859329,6.2078,1251.3,1251.0,2.37834408]
[1672913859648,3.2078,1251.2,1251.0,3.79507574]
[1672913859854,3.0,1251.1,1251.0,3.79507574]
[1672913860069,3.0,1251.1,1250.9,2.25045152]
[1672913860279,3.2078,1251.0,1250.9,2.25045152]
[1672913860486,3.2078,1251.0,1250.9,3.66731984]
[1672913861009,3.2078,1251.0,1250.9,3.6673332]
[1672913861215,3.2078,1251.0,1250.9,2.25045152]
[1672913863332,3.2078,1251.0,1250.8,0.98371919]
[1672913863542,3.0,1250.9,1250.8,0.98371919]
[1672913863855,3.0,1250.9,1250.8,2.40064813]
[1672913864382,3.0,1250.9,1250.8,0.98371919]
[1672913869528,3.0,1250.9,1250.5,2.97294957]
[1672913869733,3.2078,1250.7,1250.5,4.39008659]
[1672913869945,0.5,1250.6,1250.5,4.39008659]
[1672913870887,0.2505701,1250.6,1250.5,7.39008659]
[1672913871412,0.2505701,1250.6,1250.5,4.39008659]
[1672913872470,0.2505701,1250.6,1250.5,1.41713702]
[1672913872994,0.2505701,1250.6,1250.4,6.18074957]
[1672913873628,0.2505701,1250.6,1250.4,2.97294957]
[1672913873831,0.2505701,1250.6,1250.4,4.39012231]
[1672913876875,0.2505701,1250.6,1250.4,7.59792231]
[1672913877089,0.2505701,1250.6,1250.4,6.18074957]
[1672913877297,0.2505701,1250.6,1250.5,6.41714185]
[1672913877510,0.2505701,1250.6,1250.5,5.0]
[1672913888233,0.2505701,1250.6,1250.5,6.19180996]
[1672913893803,0.2505701,1250.6,1250.5,5.0]
[1672913894435,6.2078,1250.7,1250.5,5.0]
[1672913894646,6.2078,1250.7,1250.6,1.1918414]
[1672913894851,6.2078,1250.7,1250.6,4.1918414]
[1672913895059,6.2078,1250.7,1250.6,1.1918414]
[1672913895485,3.2078,1250.7,1250.6,1.1918414]
[1672913895797,6.2078,1250.9,1250.6,5.38393738]
[1672913896009,6.2078,1250.9,1250.7,1.19197327]
[1672913896424,3.2078,1250.9,1250.7,6.19197327]
[1672913896633,3.2078,1250.9,1250.8,2.19197327]
[1672913896954,3.2078,1250.9,1250.8,1.19197327]
[1672913897271,3.2078,1250.9,1250.8,2.19197327]
[1672913897789,3.2078,1250.9,1250.8,1.19197327]
[1672913899365,3.2078,1250.9,1250.8,3.0]
[1672913899576,3.2078,1250.9,1250.8,4.19311283]
[1672913900318,3.2078,1250.9,1250.8,1.19311283]
[1672913901890,3.2078,1250.9,1250.7,7.38393738]
[1672913902735,7.6349,1251.0,1250.7,7.38393738]
[1672913903048,7.6349,1251.0,1250.9,1.19329135]
[1672913903781,3.2078,1251.0,1250.9,1.19329135]
[1672913907567,3.2078,1251.0,1250.8,1.19329135]
[1672913907777,3.0,1250.9,1250.8,1.19329135]
[1672913907980,3.0,1250.9,1250.7,1.7903988]
[1672913907981,3.0,1250.9,1250.7,1.19329135]
[1672913908190,3.2078,1250.8,1250.7,1.19329135]
[1672913913663,3.2078,1250.8,1250.6,2.98369015]
[1672913913873,3.2078,1250.8,1250.7,1.19329135]
[1672913914806,3.2078,1250.8,1250.6,2.98369015]
[1672913915021,0.5,1250.7,1250.6,2.98369015]
[1672913915653,0.5,1250.7,1250.6,1.7903988]
[1672913918074,3.7078,1250.7,1250.6,1.7903988]
[1672913923014,0.5,1250.7,1250.6,1.7903988]
[1672913923226,3.7078,1250.7,1250.6,1.7903988]
[1672913923961,3.7078,1250.7,1250.6,2.98442556]
[1672913926699,0.5,1250.7,1250.6,2.98442556]
[1672913927009,3.7078,1250.7,1250.6,2.98442556]
[1672913927537,3.7078,1250.7,1250.6,1.19402676]
[1672913927743,3.7078,1250.7,1250.5,7.98442556]
[1672913929528,3.7078,1250.7,1250.6,1.19402676]
[1672913932165,3.7078,1250.7,1250.5,7.98442556]
[1672913934269,3.7078,1250.7,1250.5,6.19402676]
[1672913934469,3.7078,1250.7,1250.5,7.98442556]
[1672913934789,0.5,1250.7,1250.5,7.98442556]
[1672913935001,3.2078,1250.6,1250.5,7.98442556]
[1672913936049,0.5,1250.7,1250.5,7.98442556]
[1672913936265,3.2078,1250.6,1250.5,7.98442556]
[1672913936473,3.2078,1250.6,1250.5,6.7903988]
[1672913937095,0.5,1250.7,1250.5,6.7903988]
[1672913937315,3.7078,1250.7,1250.6,1.19293137]
[1672913937513,3.7078,1250.7,1250.5,7.98333017]
[1672913937840,0.5,1250.7,1250.5,7.98333017]
[1672913938051,3.2078,1250.6,1250.5,6.7903988]
[1672913938262,3.2078,1250.6,1250.5,7.98352388]
[1672913939094,3.2078,1250.6,1250.5,6.19312508]
[1672913939409,3.2078,1250.6,1250.5,7.98352388]
[1672913942048,3.2078,1250.6,1250.5,6.7903988]
[1672913945611,0.5,1250.7,1250.5,6.7903988]
[1672913945826,3.2078,1250.6,1250.5,6.7903988]
[1672913946141,3.2078,1250.6,1250.5,7.38393738]
[1672913947297,3.2078,1250.6,1250.5,8.80126627]
[1672913948662,3.2078,1250.6,1250.5,7.38393738]
[1672913948977,3.2078,1250.6,1250.5,8.80126677]
[1672913949185,3.2078,1250.6,1250.5,9.17662683]
[1672913949398,3.2078,1250.6,1250.5,7.38393738]
[1672913950243,3.2078,1250.6,1250.5,8.80127988]
[1672913950448,3.2078,1250.6,1250.5,7.38393738]
[1672913950868,3.2078,1250.6,1250.5,8.8012893]
[1672913957388,0.5,1250.7,1250.5,8.8012893]
[1672913957605,3.2078,1250.6,1250.5,7.38393738]
[1672913957817,3.2078,1250.6,1250.5,8.80124964]
[1672913958443,3.2078,1250.6,1250.5,11.80124964]
[1672913958656,3.2078,1250.6,1250.5,11.78094436]
[1672913958861,3.2078,1250.6,1250.5,11.78096183]
[1672913959071,3.2078,1250.6,1250.5,11.78097867]
[1672913959287,3.2078,1250.6,1250.5,9.39026183]
[1672913959602,3.2078,1250.6,1250.5,11.78097092]
[1672913959809,0.5,1250.7,1250.5,11.78097092]
[1672913960128,3.7078,1250.7,1250.6,7.18367886]
[1672913960332,3.7078,1250.7,1250.6,4.18367886]
[1672913961173,3.7078,1250.7,1250.6,4.18384107]
[1672913961384,0.5,1250.7,1250.6,4.18384107]
[1672913961594,3.7078,1250.7,1250.6,4.18384107]
[1672913961804,3.7078,1250.7,1250.6,4.18392021]
[1672913962014,3.7078,1250.7,1250.6,2.39070909]
[1672913962650,3.7078,1250.7,1250.6,4.18421816]
[1672913963073,3.7078,1250.7,1250.6,1.79350907]
[1672913963388,3.7078,1250.7,1250.6,5.39070909]
[1672913963804,3.7078,1250.7,1250.6,3.80797403]
[1672913964019,3.7078,1250.7,1250.6,5.39070909]
[1672913964334,3.7078,1250.7,1250.6,3.80797052]
[1672913964963,3.2078,1250.7,1250.6,3.80797052]
[1672913965168,3.2078,1250.7,1250.6,6.80881208]
[1672913965490,3.2078,1250.7,1250.6,9.78176165]
[1672913965702,3.2078,1250.7,1250.6,6.80881208]
[1672913966744,3.2078,1250.7,1250.6,9.78176165]
[1672913967592,3.2078,1250.8,1250.6,9.78176165]
[1672913967802,3.0,1250.7,1250.6,8.36450022]
[1672913968114,3.0,1250.7,1250.6,6.78167689]
[1672913968536,3.0,1250.7,1250.6,4.39012624]
[1672913968748,3.2078,1250.8,1250.6,7.39012624]
[1672913968960,3.2078,1250.8,1250.7,4.18304906]
[1672913969172,3.2078,1250.8,1250.7,2.79278889]
[1672913969485,3.2078,1250.8,1250.7,5.18304906]
[1672913970848,3.2078,1250.8,1250.7,3.39026017]
[1672913971063,3.2078,1250.8,1250.7,3.38246565]
[1672913971377,3.2078,1250.8,1250.7,5.17435183]
[1672913972115,3.2078,1250.8,1250.7,3.38246565]
[1672913972424,6.2078,1250.9,1250.7,3.38246565]
[1672913972628,6.2078,1250.9,1250.8,2.98636445]
[1672913973164,6.2078,1250.9,1250.8,1.19454578]
[1672913974738,6.2078,1250.9,1250.8,2.98636445]
[1672913975057,6.2078,1250.9,1250.8,1.19454578]
[1672913975474,6.2078,1250.9,1250.8,2.98636445]
[1672913976951,6.2078,1250.9,1250.8,1.19454578]
[1672913977164,6.2078,1250.9,1250.8,2.98636445]
[1672913977779,6.2078,1250.9,1250.8,1.19454578]
[1672913981578,3.0,1250.9,1250.8,1.19454578]
[1672913981789,6.2078,1250.9,1250.8,1.19454578]
[1672913987355,3.2078,1250.9,1250.8,2.98636445]
[1672913989455,4.4384,1251.0,1250.8,2.98636445]
[1672913989778,7.6462,1251.0,1250.8,2.98636445]
[1672913989982,3.2078,1251.0,1250.8,2.98636445]
[1672913990928,3.2078,1251.0,1250.9,1.19454578]
[1672913991253,3.2078,1251.0,1250.9,4.19454578]
[1672913991666,3.2078,1251.0,1250.9,1.19454578]
[1672913994722,3.2078,1251.0,1250.8,2.98636445]
[1672913994933,3.2078,1251.0,1250.9,1.19454578]
[1672913999865,3.0,1251.1,1250.9,1.19454578]
[1672914000081,3.2078,1251.0,1250.9,1.19454578]
[1672914001342,3.2078,1251.0,1250.9,2.98636445]
[1672914001970,3.0,1251.1,1250.9,2.98636445]
[1672914002185,3.2078,1251.0,1250.9,2.98636445]
[1672914002907,3.2078,1251.0,1250.9,1.19454578]
[1672914004698,3.2078,1251.0,1250.9,2.98636445]
[1672914006176,3.2078,1251.0,1250.9,1.79181867]
[1672914006597,3.0,1251.1,1250.9,7.18207884]
[1672914006910,3.0,1251.1,1251.0,1.19466869]
[1672914016573,6.2078,1251.1,1251.0,1.19466869]
[1672914018467,8.53026045,1251.3,1251.0,2.98648736]
[1672914018680,3.0,1251.2,1251.1,1.79181867]
[1672914018892,3.0,1251.2,1251.1,2.98593301]
[1672914019099,3.0,1251.2,1251.1,5.98517685]
[1672914020258,7.5458,1251.3,1251.1,5.98517685]
[1672914020576,3.2078,1251.3,1251.2,1.19320341]
[1672914021200,3.2078,1251.3,1251.1,2.98502208]
[1672914021405,3.0,1251.2,1251.1,1.19320341]
[1672914021939,3.0,1251.2,1251.0,2.98502208]
[1672914022144,3.2078,1251.1,1251.0,1.19320341]
[1672914026135,3.2078,1251.1,1250.9,7.98502208]
[1672914026552,3.0,1251.0,1250.9,7.98502208]
[1672914027605,6.2078,1251.0,1250.9,7.98502208]
[1672914028244,3.0,1251.0,1250.9,7.98502208]
[1672914028446,6.2078,1251.0,1250.9,7.98502208]
[1672914028871,6.2078,1251.0,1250.9,6.79181867]
[1672914029403,3.2078,1251.0,1250.9,6.79181867]
[1672914029609,3.2078,1251.0,1250.9,9.18207884]
[1672914029821,3.2078,1251.0,1250.9,12.18207884]
[1672914030140,3.2078,1251.0,1250.9,9.18207884]
[1672914030560,3.2078,1251.0,1250.9,12.18207884]
[1672914030978,3.2078,1251.0,1250.9,9.79181867]
[1672914031184,3.2078,1251.0,1250.9,12.18207884]
[1672914032769,3.2078,1251.1,1250.9,12.18207884]
[1672914032971,3.0,1251.0,1250.9,12.18207884]
[1672914033292,3.0,1251.0,1250.9,9.18207884]
[1672914033919,3.0,1251.0,1250.9,7.39026017]
[1672914034339,3.0,1251.0,1250.9,10.39026017]
[1672914034549,3.2078,1251.1,1250.9,10.39026017]
[1672914034550,3.2078,1251.1,1250.9,8.80708055]
[1672914034762,3.2078,1251.1,1251.0,2.98386179]
[1672914034974,3.2078,1251.1,1251.0,5.98386179]
[1672914035287,3.2078,1251.1,1251.0,2.98386179]
[1672914035497,3.2078,1251.1,1251.0,2.97851725]
[1672914036865,4.3892,1251.3,1251.0,4.79031707]
[1672914037076,3.0,1251.2,1251.1,1.79031707]
[1672914037494,3.0,1251.2,1251.0,7.18057724]
[1672914037811,3.0,1251.2,1251.1,1.79031707]
[1672914040443,3.2078,1251.3,1251.1,4.18057724]
[1672914041281,3.2078,1251.3,1251.1,1.79031707]
[1672914042122,3.0,1251.2,1251.1,1.79031707]
[1672914043283,3.2078,1251.3,1251.1,1.79031707]
[1672914045903,3.0,1251.2,1251.1,1.79031707]
[1672914046951,3.0,1251.2,1251.0,15.18157724]
[1672914047585,3.0,1251.2,1251.0,12.18157724]
[1672914047998,3.0,1251.2,1251.1,1.79031707]
[1672914048320,3.0,1251.2,1251.0,12.18157724]
[1672914048526,3.2078,1251.1,1251.0,1.79031707]
[1672914052843,3.0,1251.2,1251.0,1.79031707]
[1672914053054,3.2078,1251.1,1251.0,1.79031707]
[1672914054743,3.0,1251.2,1251.0,1.79031707]
[1672914054953,3.2078,1251.1,1251.0,1.79031707]
[1672914055684,3.0,1251.2,1251.0,1.79031707]
[1672914055900,3.2078,1251.1,1251.0,1.79031707]
[1672914057471,3.2078,1251.1,1250.9,9.18057724]
[1672914057791,3.0,1251.0,1250.9,9.18057724]
[1672914058314,3.0,1251.0,1250.9,10.39026017]
[1672914058527,3.0,1251.0,1250.9,11.80710251]
[1672914058839,3.0,1251.0,1250.9,8.80710251]
[1672914059048,3.0,1251.0,1250.9,11.80710251]
[1672914059469,3.2078,1251.1,1250.9,11.80710251]
[1672914059681,3.0,1251.0,1250.9,13.36320974]
[1672914059892,3.0,1251.0,1250.9,11.80706277]
[1672914060414,3.2078,1251.1,1250.9,14.78001234]
[1672914060626,3.2078,1251.1,1251.0,4.79047457]
[1672914061680,3.2078,1251.1,1251.0,1.79047457]
[1672914063143,3.0,1251.2,1251.0,1.79047457]
[1672914063461,3.2078,1251.1,1251.0,1.79047457]
[1672914065986,3.2078,1251.1,1251.0,4.18073474]
[1672914068194,3.2078,1251.1,1251.0,1.79047457]
[1672914068827,3.2078,1251.1,1250.9,9.18073474]
[1672914069032,3.0,1251.0,1250.9,9.18073474]
[1672914070084,3.0,1251.0,1250.9,6.79047457]
[1672914070300,3.0,1251.0,1250.8,4.18073474]
[1672914070509,3.2078,1250.9,1250.8,4.18073474]
[1672914071141,3.2078,1250.9,1250.8,1.79047457]
[1672914077240,3.0,1251.2,1250.8,6.80713971]
[1672914077451,6.2078,1251.2,1250.9,4.78916762]
[1672914077653,6.2078,1251.2,1251.0,1.0]
[1672914078926,6.2078,1251.2,1250.9,7.17942779]
[1672914079866,3.2078,1251.1,1250.9,7.17942779]
[1672914080077,3.0,1251.0,1250.9,7.17942779]
[1672914080294,3.0,1251.0,1250.9,5.39026017]
[1672914080914,3.0,1251.0,1250.9,2.39026017]
[1672914081338,3.0,1251.0,1250.9,4.17928829]
[1672914081554,3.0,1251.0,1250.9,2.39026017]
[1672914083029,3.0,1251.0,1250.9,3.80707918]
[1672914084918,3.2078,1251.1,1250.9,3.80707918]
[1672914085134,3.2078,1251.1,1251.0,4.78940429]
[1672914085341,3.2078,1251.1,1251.0,1.78940429]
[1672914088496,3.0,1251.2,1251.0,1.78940429]
[1672914088925,6.2078,1251.2,1251.0,1.78940429]
[1672914091019,6.2078,1251.2,1250.9,1.78940429]
[1672914091233,3.2078,1251.0,1250.9,1.78940429]
[1672914097321,3.0,1251.2,1250.9,1.78940429]
[1672914097526,3.2078,1251.0,1250.9,1.78940429]
[1672914097735,3.2078,1251.0,1250.8,4.17966446]
[1672914097949,3.0,1250.9,1250.8,4.17966446]
[1672914098369,3.0,1250.9,1250.8,2.39026017]
[1672914098580,3.0,1250.9,1250.8,3.80721249]
[1672914098797,3.0,1250.9,1250.8,6.80721249]
[1672914099113,3.0,1250.9,1250.8,3.80721249]
[1672914100057,3.2078,1251.0,1250.8,3.80721249]
[1672914100272,3.2078,1251.0,1250.9,1.78912596]
[1672914100795,3.2078,1251.0,1250.9,1.78161649]
[1672914111507,3.2078,1251.0,1250.9,4.17187666]
[1672914112981,3.2078,1251.0,1250.9,2.39026017]
[1672914115604,3.2078,1251.0,1250.9,3.80712061]
[1672914116446,3.2078,1251.0,1250.9,2.39026017]
[1672914117601,3.2078,1251.0,1250.8,8.36320974]
[1672914117809,3.2078,1251.0,1250.8,5.39026017]
[1672914118338,3.2078,1251.0,1250.8,2.39026017]
[1672914118544,3.2078,1251.0,1250.8,3.80723102]
[1672914119598,3.2078,1251.0,1250.8,2.39026017]
[1672914120440,3.0,1250.9,1250.8,2.39026017]
[1672914122751,3.0,1250.9,1250.7,7.39026017]
[1672914122966,3.2078,1250.8,1250.7,7.39026017]
[1672914123169,3.2078,1250.8,1250.7,8.80733602]
[1672914123594,3.2078,1250.8,1250.7,11.78028559]
[1672914123909,3.2078,1250.8,1250.7,8.80733602]
[1672914124858,3.0,1250.9,1250.7,8.80733602]
[1672914125063,3.2078,1250.8,1250.7,7.39026017]
[1672914125274,3.2078,1250.8,1250.7,8.80731305]
[1672914126746,3.2078,1250.8,1250.7,14.78026262]
[1672914126955,3.2078,1250.8,1250.7,9.39000245]
[1672914127170,3.0,1250.9,1250.7,12.39000245]
[1672914127374,3.0,1250.9,1250.8,2.38632103]
[1672914127586,3.0,1250.9,1250.8,5.38632103]
[1672914128955,3.0,1250.9,1250.8,6.80330442]
[1672914129167,3.0,1250.9,1250.8,2.38632103]
[1672914129897,6.2078,1250.9,1250.8,2.38632103]
[1672914132427,3.2078,1250.9,1250.8,5.38632103]
[1672914132628,3.2078,1250.9,1250.8,3.80329808]
[1672914133469,3.0,1251.0,1250.8,3.80329808]
[1672914133680,3.2078,1250.9,1250.8,3.80329808]
[1672914134740,3.2078,1250.9,1250.8,2.38632103]
[1672914135056,3.2078,1250.9,1250.8,3.80329767]
[1672914136001,3.2078,1250.9,1250.8,2.38632103]
[1672914136315,3.2078,1250.9,1250.8,3.80329837]
[1672914137152,3.2078,1250.9,1250.8,2.38632103]
[1672914137993,3.0,1251.0,1250.8,2.38632103]
[1672914138209,3.2078,1250.9,1250.8,2.38632103]
[1672914138530,3.2078,1250.9,1250.7,10.3592706]
[1672914138730,3.0,1250.8,1250.7,10.3592706]
[1672914138936,3.0,1250.8,1250.7,11.77629819]
[1672914139890,3.0,1250.8,1250.7,9.38997716]
[1672914140208,3.2078,1250.9,1250.7,12.38997716]
[1672914140403,3.2078,1250.9,1250.8,2.38595399]
[1672914140721,3.2078,1250.9,1250.8,5.38595399]
[1672914141037,3.0,1251.0,1250.8,5.38595399]
[1672914141246,3.2078,1250.9,1250.8,5.38595399]
[1672914141987,3.2078,1250.9,1250.8,6.80293119]
[1672914142199,3.2078,1250.9,1250.8,5.38595399]
[1672914142409,3.2078,1250.9,1250.8,6.80293348]
[1672914143157,3.2078,1250.9,1250.8,3.80293348]
[1672914143460,6.2078,1251.0,1250.8,6.80293348]
[1672914143664,6.2078,1251.0,1250.8,2.38595399]
[1672914143874,6.2078,1251.0,1250.8,3.80291867]
[1672914144820,3.0,1251.0,1250.8,3.80291867]
[1672914145036,6.2078,1251.0,1250.8,3.80291867]
[1672914145986,6.2078,1251.0,1250.8,2.38595399]
[1672914146189,6.2078,1251.0,1250.8,3.80292713]
[1672914148928,3.0,1251.0,1250.8,3.80292713]
[1672914149138,6.2078,1251.0,1250.8,3.80292713]
[1672914150083,6.2078,1251.0,1250.8,2.38595399]
[1672914151970,6.2078,1251.0,1250.8,5.38595399]
[1672914152182,6.2078,1251.0,1250.8,2.38595399]
[1672914153334,3.2078,1250.9,1250.8,2.38595399]
[1672914153965,3.0,1251.0,1250.8,2.38595399]
[1672914154168,3.2078,1250.9,1250.8,2.38595399]
[1672914162376,3.0,1251.0,1250.8,2.38595399]
[1672914162587,3.2078,1250.9,1250.8,2.38595399]
[1672914162793,3.2078,1250.9,1250.8,3.80297294]
[1672914163318,3.0,1251.0,1250.8,3.80297294]
[1672914163736,3.0,1251.0,1250.9,2.98331455]
[1672914163950,6.2078,1251.0,1250.9,2.98331455]
[1672914164893,3.0,1251.0,1250.9,2.98331455]
[1672914165105,6.2078,1251.0,1250.9,2.98331455]
[1672914167098,3.0,1251.0,1250.9,2.98331455]
[1672914167308,6.2078,1251.0,1250.9,2.98331455]
[1672914168150,3.0,1251.0,1250.9,2.98331455]
[1672914168363,6.2078,1251.0,1250.9,2.98331455]
[1672914170459,3.0,1251.0,1250.9,2.98331455]
[1672914170675,6.2078,1251.0,1250.9,2.98331455]